bitfinex/quotes_ETHUSD_20250821
["timestamp","ask_amount","ask_price","bid_price","bid_amount"]
[1755775736644,0.002,4309.1,4309.0,18.63421511]
[1755775737706,0.002,4309.1,4309.0,10.62113963]
[1755775737906,0.002,4309.1,4309.0,22.10051511]
[1755775738226,0.002,4309.1,4309.0,22.53921511]
[1755775745313,0.002,4309.1,4309.0,22.10051511]
[1755775747516,0.002,4309.1,4309.0,18.19551511]
[1755775747819,0.002,4309.1,4309.0,22.09851511]
[1755775748415,0.0012,4309.1,4309.0,22.09851511]
[1755775748849,0.0012,4309.1,4309.0,22.54431511]
[1755775750960,0.0012,4309.1,4309.0,22.54331511]
[1755775754253,0.0012,4309.1,4309.0,22.09751511]
[1755775754620,0.0012,4309.1,4309.0,22.54331511]
[1755775756118,0.002,4309.5,4309.1,3.0]
[1755775756349,0.002,4309.5,4309.4,11.35037548]
[1755775756650,0.002,4309.5,4309.4,19.44237548]
[1755775759063,0.02,4309.8,4309.5,3.66]
[1755775759358,0.02,4309.8,4309.7,11.52997548]
[1755775759543,0.02,4309.8,4309.7,15.03257343]
[1755775759943,0.02,4309.8,4309.7,15.47837343]
[1755775763033,0.02,4309.8,4309.7,19.66837343]
[1755775763969,0.02,4309.8,4309.7,15.47837343]
[1755775768943,0.02,4309.8,4309.7,19.66837343]
[1755775769441,0.3105,4309.8,4309.7,11.35259795]
[1755775769644,0.783,4309.8,4309.7,5.801]
[1755775769952,0.783,4309.8,4309.7,5.685]
[1755775770181,0.783,4309.8,4309.7,8.685]
[1755775770369,0.783,4309.8,4309.7,5.685]
[1755775771165,0.783,4309.8,4309.7,8.685]
[1755775772174,0.7822,4309.8,4309.7,8.685]
[1755775776396,0.7822,4309.8,4309.7,8.684]
[1755775778401,0.7822,4309.8,4309.7,5.684]
[1755775780881,0.7822,4309.8,4309.7,1.785]
[1755775781082,0.7581,4309.8,4309.7,5.684]
[1755775782500,0.7581,4309.8,4309.7,1.785]
[1755775782806,0.7581,4309.8,4309.7,5.684]
[1755775785180,0.7581,4309.8,4309.7,1.785]
[1755775785383,0.7581,4309.8,4309.7,5.684]
[1755775786884,0.7581,4309.8,4309.7,1.785]
[1755775787084,0.7581,4309.8,4309.7,5.684]
[1755775787480,0.7581,4309.8,4309.7,1.785]
[1755775787709,0.7581,4309.8,4309.7,5.684]
[1755775788412,0.3097,4309.8,4309.7,5.684]
[1755775788617,0.3097,4309.8,4309.7,5.683]
[1755775789711,0.3097,4309.8,4309.7,5.9789]
[1755775789712,0.0192,4309.8,4309.7,5.9789]
[1755775789914,0.0192,4309.8,4309.7,7.33432755]
[1755775790123,0.0192,4309.8,4309.7,7.79002755]
[1755775790298,0.0192,4309.8,4309.7,7.33432755]
[1755775790614,0.316,4309.8,4309.7,7.33432755]
[1755775790797,0.316,4309.8,4309.7,7.03842755]
[1755775791418,0.0192,4309.8,4309.7,7.33432755]
[1755775791913,0.0192,4309.8,4309.7,7.79002755]
[1755775792115,0.0192,4309.8,4309.7,9.65527548]
[1755775792414,0.316,4309.8,4309.7,9.35937548]
[1755775792760,0.316,4309.8,4309.7,1.785]
[1755775792917,0.7644,4309.8,4309.7,1.785]
[1755775793225,0.7644,4309.8,4309.7,3.898]
[1755775793915,0.316,4309.8,4309.7,11.47237548]
[1755775794627,0.7644,4309.8,4309.7,11.47237548]
[1755775795807,0.7636,4309.8,4309.7,11.47237548]
[1755775800298,0.7636,4309.8,4309.7,3.898]
[1755775800498,0.7636,4309.8,4309.6,0.001]
[1755775800723,0.3152,4309.8,4309.7,3.897]
[1755775801215,0.7636,4309.8,4309.6,0.001]
[1755775801400,0.4484,4309.7,4309.6,0.001]
[1755775801609,0.7452,4309.7,4309.6,0.001]
[1755775805330,0.2968,4309.7,4309.6,0.001]
[1755775806749,0.0204,4309.8,4309.6,0.320104]
[1755775806920,0.0204,4309.8,4309.6,1.54482195]
[1755775807322,0.0204,4309.8,4309.7,7.57437548]
[1755775807523,0.0204,4309.8,4309.7,7.87027548]
[1755775807722,0.0204,4309.8,4309.7,9.11277548]
[1755775808056,0.0204,4309.8,4309.7,12.11277548]
[1755775808354,0.0204,4309.8,4309.7,13.83632482]
[1755775809162,0.0204,4309.8,4309.7,17.73332482]
[1755775809935,0.0204,4309.8,4309.7,13.83632482]
[1755775810263,0.0204,4309.8,4309.7,17.73332482]
[1755775811244,0.0204,4309.8,4309.7,13.83632482]
[1755775811581,0.0204,4309.8,4309.7,17.73332482]
[1755775813578,0.0204,4309.8,4309.7,13.83632482]
[1755775813779,0.0204,4309.8,4309.7,17.73232482]
[1755775814897,0.0204,4309.8,4309.7,13.83632482]
[1755775815054,0.0204,4309.8,4309.7,17.73232482]
[1755775815887,0.002,4310.0,4309.8,3.66]
[1755775816076,0.002,4310.0,4309.9,7.88120239]
[1755775816277,0.002,4310.0,4309.9,7.858]
[1755775816476,0.002,4310.0,4309.9,8.3245]
[1755775817359,0.002,4310.0,4309.9,3.962]
[1755775817579,0.002,4310.0,4309.9,9.2473208]
[1755775817775,0.3143,4310.0,4309.9,8.9453208]
[1755775818564,0.002,4310.0,4309.9,8.9453208]
[1755775818785,0.002,4310.0,4309.9,5.3513208]
[1755775818991,0.002,4310.0,4309.9,9.2473208]
[1755775819601,0.0012,4310.0,4309.9,5.3513208]
[1755775819899,0.0012,4310.0,4309.9,9.7138208]
[1755775822586,0.0012,4310.0,4309.9,13.9038208]
[1755775822993,0.002,4310.7,4310.3,0.66]
[1755775823172,0.002,4310.7,4310.4,21.72757918]
[1755775823501,0.002,4310.7,4310.4,21.70437948]
[1755775823672,0.002,4310.7,4310.4,22.28687948]
[1755775824202,0.002,4310.7,4310.4,20.30084978]
[1755775824407,0.002,4310.7,4310.5,3.66]
[1755775824579,0.002,4310.7,4310.6,9.66668795]
[1755775824988,0.002,4310.7,4310.6,10.13318795]
[1755775829498,0.002,4310.7,4310.6,14.32318795]
[1755775832685,0.002,4310.7,4310.6,16.64305061]
[1755775834511,0.002,4310.7,4310.6,14.32318795]
[1755775835985,0.002,4310.7,4310.6,21.89756343]
[1755775836191,0.002,4310.7,4310.6,21.89556343]
[1755775836912,0.002,4310.7,4310.6,10.42818795]
[1755775837224,0.002,4310.7,4310.6,21.89556343]
[1755775837519,0.002,4311.4,4310.6,21.89556343]
[1755775837520,0.002,4311.4,4310.9,0.66]
[1755775837723,0.002,4311.4,4311.3,4.0676]
[1755775838021,0.3149,4311.4,4311.3,17.02737548]
[1755775838419,0.002,4311.4,4311.3,17.02737548]
[1755775840720,0.002,4311.4,4311.3,19.47537548]
[1755775840923,0.002,4311.4,4311.3,19.68111511]
[1755775841727,0.002,4311.4,4311.3,20.14351511]
[1755775842902,0.002,4311.4,4311.3,24.33351511]
[1755775843429,0.0012,4311.4,4311.3,24.33351511]
[1755775846026,0.0012,4311.4,4311.3,26.65300111]
[1755775847440,0.0012,4311.4,4311.3,22.76000111]
[1755775847597,0.0012,4311.4,4311.3,26.65200111]
[1755775848726,0.0012,4311.4,4311.3,22.46200111]
[1755775849024,0.0012,4311.4,4311.3,18.57000111]
[1755775849239,0.0012,4311.4,4311.3,22.46200111]
[1755775849828,0.0012,4311.4,4311.3,22.69470111]
[1755775850229,0.0012,4311.4,4311.3,25.14270111]
[1755775853246,0.0012,4311.4,4311.3,21.25070111]
[1755775853419,0.0012,4311.4,4311.3,25.14170111]
[1755775853615,0.02,4313.8,4311.7,2.448]
[1755775853924,0.02,4313.8,4311.3,20.37421511]
[1755775853925,0.02,4313.8,4312.7,11.23437548]
[1755775854128,0.3329,4312.8,4312.7,16.90937548]
[1755775854325,0.3329,4312.8,4312.7,17.02537548]
[1755775855650,0.3329,4312.8,4312.7,13.13437548]
[1755775855853,0.3329,4312.8,4312.7,17.02537548]
[1755775856023,0.3329,4312.8,4312.7,18.72791303]
[1755775856625,0.02,4312.8,4312.7,18.72791303]
[1755775857131,0.02,4312.8,4312.7,18.89953659]
[1755775857332,0.02,4312.8,4312.7,15.00853659]
[1755775857523,0.02,4312.8,4312.7,18.89953659]
[1755775858355,0.02,4312.8,4312.7,18.89853659]
[1755775860165,0.02,4312.8,4312.7,19.19013659]
[1755775860338,0.2093,4312.8,4312.7,15.00853659]
[1755775860537,0.6439,4312.8,4312.7,17.19599904]
[1755775861251,0.2093,4312.8,4312.7,17.19599904]
[1755775861853,0.02,4312.8,4312.7,17.48759904]
[1755775862056,0.02,4312.8,4312.7,17.94999904]
[1755775862740,0.02,4312.8,4312.7,17.19599904]
[1755775862946,0.2093,4312.8,4312.7,18.91559894]
[1755775863141,0.6439,4312.8,4312.7,18.91559894]
[1755775863383,0.2093,4312.8,4312.7,18.91559894]
[1755775863790,0.3329,4312.8,4312.7,23.10559894]
[1755775865102,0.02,4312.8,4312.7,23.10559894]
[1755775865308,0.3329,4312.8,4312.7,23.10559894]
[1755775865605,0.6451,4312.8,4312.7,23.10559894]
[1755775865899,0.3329,4312.8,4312.7,23.10459894]
[1755775866260,0.02,4312.8,4312.7,23.10459894]
[1755775866498,0.02,4312.8,4312.7,23.39619894]
[1755775866700,0.02,4312.8,4312.7,19.21559894]
[1755775866905,0.2093,4312.8,4312.7,23.10459894]
[1755775867088,0.02,4312.8,4312.7,23.10459894]
[1755775867303,0.0192,4312.8,4312.7,19.96959894]
[1755775867584,0.0192,4312.8,4312.7,23.85859894]
[1755775867790,0.0192,4312.8,4312.7,23.39619894]
[1755775868801,0.1894,4312.8,4312.7,23.10459894]
[1755775869005,0.3333,4312.8,4312.7,23.10459894]
[1755775870200,0.3365,4312.8,4312.7,23.10459894]
[1755775870997,0.3365,4312.8,4312.7,9.92162356]
[1755775871210,0.3365,4312.8,4312.7,4.95562356]
[1755775871501,0.3365,4312.8,4312.7,8.84462356]
[1755775871802,0.3365,4312.8,4312.7,1.95562356]
[1755775872010,0.3365,4312.8,4312.7,5.84462356]
[1755775872190,0.3365,4312.8,4312.7,1.95562356]
[1755775872390,0.3365,4312.8,4312.7,5.84462356]
[1755775872700,0.3365,4312.8,4312.7,13.41899904]
[1755775873688,0.3365,4312.8,4312.7,5.84462356]
[1755775873903,0.3365,4312.8,4312.7,13.41899904]
[1755775874096,0.3365,4312.8,4312.7,1.95562356]
[1755775874270,0.3365,4312.8,4312.7,13.41899904]
[1755775874695,0.3365,4312.8,4312.7,1.95562356]
[1755775874696,0.3333,4312.8,4312.7,1.95562356]
[1755775874874,0.3353,4312.8,4312.7,5.673]
[1755775875803,0.3353,4312.8,4312.7,13.24637548]
[1755775876869,0.3353,4312.8,4312.7,13.24737548]
[1755775877374,0.3353,4312.8,4312.7,5.673]
[1755775877575,0.3353,4312.8,4312.7,13.24737548]
[1755775878598,0.3353,4312.8,4312.7,13.24637548]
[1755775879105,0.3353,4312.8,4312.7,5.672]
[1755775879303,0.3353,4312.8,4312.7,1.784]
[1755775879506,0.3353,4312.8,4312.7,5.672]
[1755775879805,0.6432,4312.8,4312.7,5.672]
[1755775880175,0.3353,4312.8,4312.7,1.784]
[1755775880376,0.6432,4312.8,4312.7,5.672]
[1755775880602,0.6432,4312.8,4312.7,1.784]
[1755775880805,0.6432,4312.8,4312.7,3.888]
[1755775884483,0.6432,4312.8,4312.3,0.17163948]
[1755775884803,0.3353,4312.8,4312.6,7.57437548]
[1755775885112,0.3353,4312.8,4312.7,3.888]
[1755775886018,0.3353,4312.8,4312.3,7.57437548]
[1755775886316,0.3353,4312.8,4312.0,1.783]
[1755775886317,0.3353,4312.8,4312.4,3.888]
[1755775889017,0.3353,4312.8,4312.6,7.57437548]
[1755775889196,0.3353,4312.8,4312.7,3.888]
[1755775890923,0.3345,4312.8,4312.7,3.888]
[1755775892423,0.0236,4312.8,4312.7,3.888]
[1755775894942,0.48,4312.8,4312.4,7.57437548]
[1755775895310,0.48,4312.8,4312.5,3.888]
[1755775895528,0.0236,4312.8,4312.5,3.888]
[1755775897010,0.0204,4312.8,4312.7,0.3037]
[1755775897221,0.0204,4312.8,4312.7,11.78926281]
[1755775897519,0.0204,4312.8,4312.7,12.23267548]
[1755775898109,0.0204,4312.8,4312.7,4.6583]
[1755775898332,0.0204,4312.8,4312.7,11.76607548]
[1755775899143,0.0204,4312.8,4312.7,12.98540303]
[1755775900346,0.0204,4312.8,4312.7,13.42260303]
[1755775902217,0.0204,4312.8,4312.7,9.53560303]
[1755775902546,0.0204,4312.8,4312.7,13.42260303]
[1755775903107,0.0204,4312.8,4312.7,12.98540303]
[1755775903338,0.0204,4312.8,4312.7,12.68170303]
[1755775903539,0.02,4313.8,4312.7,12.68170303]
[1755775903540,1.76618534,4316.3,4313.6,3.847]
[1755775903744,0.02,4316.8,4316.2,0.316]
[1755775903914,0.02,4316.8,4316.3,0.66]
[1755775904112,0.02,4316.8,4316.7,7.57437548]
[1755775904435,0.1696173,4316.7,4316.5,7.57437548]
[1755775904638,0.1696173,4316.7,4316.6,0.34495357]
[1755775904956,0.4588173,4316.7,4316.6,0.34495357]
[1755775905315,0.2892,4316.7,4316.6,7.91932905]
[1755775907318,0.02,4316.8,4316.6,7.91932905]
[1755775907623,0.02,4316.8,4316.7,0.34495357]
[1755775907843,0.02,4316.8,4316.7,7.91932905]
[1755775908020,0.3092,4316.8,4316.7,7.91932905]
[1755775908649,0.3092,4316.8,4316.7,7.91842877]
[1755775908957,0.3092,4316.8,4316.7,7.91836258]
[1755775909124,0.3092,4316.8,4316.7,0.3439871]
[1755775909329,0.3092,4316.8,4316.7,7.91836258]
[1755775909639,0.3092,4316.8,4316.7,0.3439871]
[1755775909829,0.5539,4316.8,4316.7,7.91836258]
[1755775910025,0.5539,4316.8,4316.7,0.3439871]
[1755775910855,0.3092,4316.8,4316.7,0.3439871]
[1755775912756,0.5539,4316.8,4316.7,0.3439871]
[1755775914266,0.3092,4316.8,4316.7,0.3439871]
[1755775914448,0.5539,4316.8,4316.7,0.3439871]
[1755775914645,0.5539,4316.8,4316.7,0.34368296]
[1755775914845,0.3084,4316.8,4316.7,0.34366299]
[1755775915634,0.5531,4316.8,4316.7,0.34366299]
[1755775917281,0.3084,4316.8,4316.7,0.34366299]
[1755775917892,0.5531,4316.8,4316.4,7.57437548]
[1755775918047,1.783,4316.7,4316.5,0.34293434]
[1755775918246,1.783,4316.7,4316.1,7.57437548]
[1755775918247,0.5338,4316.6,4316.1,7.57437548]
[1755775918472,0.5338,4316.6,4316.2,0.34295489]
[1755775918659,0.5338,4316.6,4316.3,0.34296861]
[1755775918865,0.5338,4316.6,4316.4,0.34296861]
[1755775919061,0.5338,4316.6,4316.5,0.34296861]
[1755775920986,0.5338,4316.6,4316.5,0.342957]
[1755775924300,0.5338,4316.6,4316.5,0.343957]
[1755775924609,0.5338,4316.6,4316.5,0.21534889]
[1755775924989,4.6988,4316.6,4316.5,0.21534889]
[1755775925371,4.6988,4316.6,4316.5,0.001]
[1755775926490,0.5338,4316.6,4316.5,0.001]
[1755775926707,4.4527,4316.6,4316.5,0.001]
[1755775926912,4.9008,4316.6,4316.5,0.001]
[1755775927378,4.9008,4316.6,4316.5,0.21595613]
[1755775927780,4.8978,4316.6,4316.5,0.001]
[1755775927976,4.8978,4316.6,4316.5,0.21601785]
[1755775929321,4.8948,4316.6,4316.5,0.21601785]
[1755775930892,4.4457,4316.6,4316.5,0.21601785]
[1755775931233,4.4417,4316.6,4316.5,0.21601785]
[1755775931396,0.2887,4316.6,4316.5,0.21601785]
[1755775931715,4.4397,4316.6,4316.5,0.21601785]
[1755775931921,0.2887,4316.6,4316.5,0.21601785]
[1755775932121,4.4387,4316.6,4316.5,0.21601785]
[1755775933328,4.907,4316.6,4316.5,0.21601785]
[1755775934593,4.907,4316.6,4316.5,0.001]
[1755775934989,0.757,4316.6,4316.5,0.001]
[1755775935186,4.902,4316.6,4316.5,0.001]
[1755775935723,4.4307,4316.6,4316.5,0.001]
[1755775937326,4.4297,4316.6,4316.5,0.001]
[1755775938133,4.898,4316.6,4316.5,0.001]
[1755775938433,4.8972,4316.6,4316.5,0.001]
[1755775941018,0.7562,4316.6,4316.5,0.001]
[1755775941336,4.8842,4316.6,4316.5,0.001]
[1755775941521,4.4159,4316.6,4316.5,0.001]
[1755775941916,4.8842,4316.6,4316.5,0.001]
[1755775942324,0.7562,4316.6,4316.5,0.001]
[1755775942625,4.4149,4316.6,4316.5,0.001]
[1755775942814,4.8832,4316.6,4316.5,0.001]
[1755775943712,4.4119,4316.6,4316.5,0.001]
[1755775944096,4.4099,4316.6,4316.5,0.001]
[1755775944435,7.8782,4316.6,4316.5,0.001]
[1755775944605,8.09542072,4316.6,4316.5,0.001]
[1755775945131,8.09544833,4316.6,4316.5,0.001]
[1755775945506,8.09344833,4316.6,4316.5,0.001]
[1755775945703,8.09341956,4316.6,4316.5,0.001]
[1755775945922,3.97341956,4316.6,4316.5,0.001]
[1755775946123,8.09141956,4316.6,4316.5,0.001]
[1755775946835,8.75141956,4316.6,4316.5,0.001]
[1755775947023,4.76375759,4316.6,4316.5,0.001]
[1755775947204,16.45813307,4316.6,4316.5,0.001]
[1755775948035,0.0247,4315.1,4314.8,0.02]
[1755775948236,0.0247,4315.1,4315.0,0.3146]
[1755775948407,0.0247,4315.1,4315.0,7.88897548]
[1755775948733,0.0247,4315.1,4315.0,8.68219063]
[1755775949339,0.0247,4315.1,4315.0,7.88897548]
[1755775950246,0.0247,4315.1,4315.0,8.36127548]
[1755775950644,0.0247,4315.1,4315.0,0.3146]
[1755775952013,4.1387,4315.1,4315.0,0.7869]
[1755775952747,4.1387,4315.1,4314.8,0.02]
[1755775953224,0.0247,4315.1,4315.0,0.3146]
[1755775953430,4.1367,4315.1,4315.0,0.7869]
[1755775953627,0.0247,4315.1,4315.0,1.62502755]
[1755775953953,1.783,4316.2,4315.0,8.36127548]
[1755775954125,1.783,4316.9,4316.0,7.57437548]
[1755775954340,1.783,4316.9,4315.1,0.49547443]
[1755775954341,0.002,4317.2,4316.6,0.3146]
[1755775954540,4.116,4317.2,4316.6,0.3146]
[1755775954762,4.114,4317.0,4316.6,0.7869]
[1755775955058,4.114,4317.0,4316.6,0.3146]
[1755775955258,4.114,4317.0,4316.1,0.4723]
[1755775955466,4.113,4316.6,4316.1,0.4723]
[1755775955967,4.113,4316.6,4315.8,8.04667548]
[1755775957260,4.113,4316.6,4315.6,7.57437548]
[1755775957459,4.113,4316.6,4315.2,0.4723]
[1755775957668,0.4633,4316.5,4315.2,8.04667548]
[1755775958229,7.57437548,4316.4,4314.9,0.4692]
[1755775958458,7.57437548,4316.0,4314.9,0.4692]
[1755775958658,5.892,4315.9,4314.8,0.02]
[1755775958848,6.3553,4315.9,4314.8,0.02]
[1755775959430,2.2463,4315.9,4314.8,0.02]
[1755775959635,4.106,4315.8,4314.8,0.4892]
[1755775959859,4.105,4315.7,4314.8,0.4892]
[1755775960063,4.105,4315.6,4314.9,7.57437548]
[1755775960245,4.105,4315.6,4315.5,0.3107]
[1755775961548,1.783,4315.9,4315.5,0.3107]
[1755775961754,4.101,4315.8,4315.5,0.3107]
[1755775961955,4.101,4315.7,4315.5,0.3107]
[1755775962158,4.1002,4315.7,4315.5,0.3107]
[1755775962474,1.783,4315.9,4315.5,0.3107]
[1755775962671,4.099,4315.8,4315.5,0.3107]
[1755775962870,4.099,4315.7,4315.5,0.7799]
[1755775963274,4.099,4315.7,4315.5,0.3107]
[1755775964178,4.097,4315.6,4315.5,0.3107]
[1755775964346,1.783,4315.9,4315.5,0.3107]
[1755775964876,4.096,4315.8,4315.5,0.3107]
[1755775965777,4.095,4315.7,4315.5,0.3107]
[1755775966954,1.783,4315.9,4315.5,0.3107]
[1755775967147,4.093,4315.8,4315.5,0.3107]
[1755775967480,4.093,4315.8,4314.8,0.02]
[1755775967481,0.3046,4315.6,4314.8,7.59437548]
[1755775967669,0.3046,4315.6,4314.9,0.4692]
[1755775967870,4.093,4315.8,4314.8,0.02]
[1755775968192,4.093,4315.8,4314.9,8.04357548]
[1755775968751,0.4633,4315.7,4314.8,0.02]
[1755775972060,4.085,4315.6,4314.8,0.02]
[1755775972586,4.085,4315.6,4314.9,7.57437548]
[1755775974294,0.3046,4315.0,4314.8,0.02]
[1755775974862,0.4633,4315.5,4314.8,0.02]
[1755775975066,0.4633,4315.5,4314.9,0.3107]
[1755775975895,4.076,4315.4,4314.9,7.88507548]
[1755775976266,4.076,4315.4,4314.9,8.35427548]
[1755775977766,0.4653,4315.8,4314.9,7.88507548]
[1755775977972,4.07,4315.7,4314.9,8.35427548]
[1755775978501,0.4653,4315.8,4314.9,8.35427548]
[1755775978703,4.07,4315.6,4314.9,8.35427548]
[1755775980500,4.07,4315.6,4314.8,0.021]
[1755775980501,0.3046,4315.0,4314.8,0.021]
[1755775980799,0.4633,4315.5,4314.8,0.021]
[1755775981004,4.065,4315.4,4314.9,0.3107]
[1755775981876,4.5283,4315.4,4314.9,0.3107]
[1755775983104,4.065,4315.4,4315.0,8.04357548]
[1755775983264,4.065,4315.4,4315.3,0.3107]
[1755775984190,4.061,4315.5,4315.3,0.3107]
[1755775984925,0.002,4315.8,4315.3,0.3107]
[1755775985232,4.059,4315.6,4315.3,0.3107]
[1755775985587,0.002,4315.8,4315.4,7.57437548]
[1755775985792,0.002,4315.8,4314.8,0.021]
[1755775985793,0.4633,4315.7,4315.1,7.57437548]
[1755775986092,0.4625,4315.7,4315.1,7.57437548]
[1755775986292,0.002,4315.8,4315.1,7.57437548]
[1755775987225,4.056,4315.7,4315.1,7.57437548]
[1755775987726,4.053,4315.7,4315.1,8.38083303]
[1755775988930,0.002,4315.8,4315.1,8.38083303]
[1755775989224,4.05,4315.7,4315.1,8.38083303]
[1755775990012,4.05,4315.7,4315.1,0.80645755]
[1755775990215,4.05,4315.7,4314.9,7.57437548]
[1755775990439,4.05,4315.7,4314.8,0.021]
[1755775990726,4.05,4315.7,4314.8,7.59537548]
[1755775990930,4.05,4315.7,4314.8,0.021]
[1755775990931,0.4631,4315.6,4314.8,0.021]
[1755775993297,4.5131,4315.7,4314.8,0.021]
[1755775993796,0.4631,4315.6,4314.8,0.021]
[1755775995320,4.041,4315.5,4314.8,0.82745755]
[1755775995819,0.4631,4315.4,4314.8,0.021]
[1755775996023,0.292,4314.9,4314.8,0.021]
[1755775996499,4.7951,4314.9,4314.8,0.021]
[1755776000419,0.7551,4314.9,4314.8,0.021]
[1755776000623,4.7911,4314.9,4314.8,0.021]
[1755776002430,0.7551,4314.9,4314.8,0.021]
[1755776002914,4.7861,4314.9,4314.8,0.021]
[1755776005950,0.7551,4314.9,4314.8,0.021]
[1755776006147,4.7821,4314.9,4314.8,0.021]
[1755776007418,4.7791,4314.9,4314.8,0.021]
[1755776009651,4.7783,4314.9,4314.8,0.021]
[1755776010825,4.7733,4314.9,4314.8,0.021]
[1755776011513,12.34767548,4314.9,4314.8,0.021]
[1755776013062,12.56468923,4314.9,4314.8,0.021]
[1755776013859,13.35487317,4314.9,4314.8,0.021]
[1755776014063,47.21662161,4314.9,4314.8,0.021]
[1755776015464,49.53417242,4314.9,4314.8,0.021]
[1755776015983,0.66,4314.5,4314.3,0.001]
[1755776016133,45.22757317,4314.4,4314.3,0.001]
[1755776016471,45.69067317,4314.4,4314.3,0.001]
[1755776017076,15.69067317,4314.4,4314.3,0.001]
[1755776017230,45.69067317,4314.4,4314.3,0.001]
[1755776018646,49.02958176,4314.4,4314.3,0.001]
[1755776018970,49.52854244,4314.4,4314.3,0.001]
[1755776021259,3.66,4314.3,4313.9,0.001]
[1755776021438,11.53027548,4314.0,4313.9,0.001]
[1755776021639,46.74505833,4314.0,4313.9,0.001]
[1755776021838,49.51359263,4314.0,4313.9,0.001]
[1755776022475,49.51359263,4314.0,4310.8,0.19733313]
[1755776022476,0.66,4313.7,4311.8,0.4569]
[1755776022677,11.53027548,4312.9,4311.8,0.4569]
[1755776022883,47.32127548,4312.9,4311.8,0.4569]
[1755776023077,47.77177548,4312.9,4311.8,0.4569]
[1755776023244,47.77177548,4312.9,4311.8,0.021]
[1755776024080,47.98800718,4312.9,4311.8,0.021]
[1755776024884,47.77177548,4312.9,4311.8,0.021]
[1755776025087,17.31927548,4312.9,4311.8,0.021]
[1755776025283,17.31927548,4312.9,4312.2,0.4369]
[1755776025981,17.76977548,4312.9,4312.2,0.001]
[1755776026184,47.76977548,4312.9,4312.2,0.001]
[1755776027581,47.76777548,4312.9,4312.2,0.001]
[1755776027792,47.76677548,4312.9,4312.2,0.001]
[1755776029692,47.76677548,4312.9,4312.8,0.021]
[1755776031953,47.76177548,4312.9,4312.8,0.021]
[1755776032156,44.76177548,4312.9,4312.8,0.021]
[1755776033486,44.76097548,4312.9,4312.8,0.021]
[1755776033957,0.66,4312.8,4312.2,0.001]
[1755776034301,7.87027548,4312.3,4312.2,0.001]
[1755776034512,12.52627548,4312.3,4312.2,0.001]
[1755776035175,15.52627548,4312.3,4312.2,0.001]
[1755776035505,15.97677548,4312.3,4312.2,0.001]
[1755776035704,45.97677548,4312.3,4312.2,0.001]
[1755776039212,46.33856384,4312.3,4312.2,0.001]
[1755776039528,46.68441768,4312.3,4312.2,0.001]
[1755776040500,46.68479245,4312.3,4312.2,0.001]
[1755776040701,16.68479245,4312.3,4312.2,0.001]
[1755776041306,46.68479245,4312.3,4312.2,0.001]
[1755776042700,46.96060576,4312.3,4312.2,0.001]
[1755776043299,46.96060576,4312.3,4311.9,0.001]
[1755776043300,3.93581331,4312.2,4311.9,0.001]
[1755776043517,10.87027548,4312.0,4311.9,0.001]
[1755776043711,10.87027548,4312.0,4311.8,0.021]
[1755776043712,0.66,4311.9,4311.8,0.021]
[1755776044034,0.66,4311.7,4311.4,0.001]
[1755776044221,10.87027548,4311.5,4311.4,0.001]
[1755776044544,0.66,4311.4,4311.3,0.001]
[1755776044745,38.92773028,4311.4,4311.3,0.001]
[1755776045048,11.23437548,4311.1,4310.8,0.021]
[1755776045246,48.01229245,4311.1,4310.8,0.021]
[1755776045459,18.24639957,4311.1,4310.8,0.021]
[1755776045663,18.46351182,4311.1,4310.8,0.021]
[1755776046030,48.46351277,4311.1,4310.8,0.021]
[1755776046552,48.96300861,4311.1,4310.8,0.021]
[1755776047348,44.97400861,4311.1,4310.8,0.021]
[1755776047734,48.96000861,4311.1,4310.8,0.021]
[1755776048136,49.13223587,4311.1,4310.8,0.021]
[1755776049321,4.02178836,4311.0,4310.8,0.021]
[1755776049520,8.28814893,4310.9,4310.8,0.021]
[1755776049723,39.09353729,4310.9,4310.8,0.021]
[1755776053559,9.09353729,4310.9,4310.8,0.021]
[1755776053936,39.09353729,4310.9,4310.8,0.021]
[1755776054957,38.87656914,4310.9,4310.8,0.021]
[1755776055158,39.09320378,4310.9,4310.8,0.021]
[1755776056669,39.09320378,4310.9,4310.4,0.001]
[1755776056670,10.57437548,4310.5,4310.4,0.001]
[1755776056830,45.55697926,4310.5,4310.4,0.001]
[1755776057035,45.55697926,4310.5,4310.0,0.001]
[1755776057036,0.66,4310.3,4310.0,0.001]
[1755776057249,33.6592,4310.0,4309.8,0.02]
[1755776057458,7.98160378,4309.9,4309.8,0.02]
[1755776057680,7.98160378,4309.9,4308.9,0.4541]
[1755776057681,3.0,4309.8,4308.9,0.4541]
[1755776057974,15.55597926,4309.7,4308.9,0.4541]
[1755776058181,45.99958921,4309.7,4307.7,0.001]
[1755776058337,45.99958921,4309.7,4308.8,0.4751]
[1755776059246,46.65958921,4309.7,4308.8,0.4751]
[1755776060070,46.21598921,4309.7,4308.8,0.4751]
[1755776060266,46.65958921,4309.7,4308.8,0.4751]
[1755776060768,46.29580085,4309.7,4308.8,0.4751]
[1755776060973,45.85220085,4309.7,4308.9,0.4541]
[1755776061278,45.85210494,4309.7,4308.9,0.4541]
[1755776063137,46.29551681,4309.7,4309.1,0.001]
[1755776063550,45.85191681,4309.7,4309.1,0.001]
[1755776063876,46.29551681,4309.7,4309.1,0.001]